Cogmind - Beta 15 @@@ ROGUE MODE // 2025.05.18 @ 13:07:02 Player: Cheeriohz Result: Destroyed by S-10 Pest with Light Assault Rifle Performance ------------- Evolutions (0) 0 Regions Visited (1) 200 Robots Destroyed (15) 75 Value Destroyed (333) 333 Prototype IDs (0) 0 Alien Tech Used (0) 0 Bonus (0) 0 TOTAL SCORE: 608 Bonus ------- None Cogmind --------- Core Integrity 0/250 Matter 300/300 Energy 100/100 System Corruption 0% Temperature Cool (0) Movement Core (350) Ox6 Location -10/Materials Parts ------- > --- POWER (1) -------- (None) > --- PROPULSION (2) --- (None) > --- UTILITY (2) ------ Large Storage Unit > --- WEAPON (2) ------- (None) > --- INVENTORY (15) --- Light Ion Engine Wheel Wheel Wheel Wheel Small Storage Unit Improved Terrain Scanner Seismic Detector Peak State ------------ > --- POWER ------------ Light Ion Engine > --- PROPULSION ------- Wheel Wheel > --- UTILITY ---------- Large Storage Unit Seismic Detector > --- WEAPON ----------- Assault Rifle Light Assault Rifle > --- INVENTORY -------- Ion Engine Light Treads Light Treads Wheel Wheel Small Storage Unit Improved Terrain Scanner Seismic Detector [Rating: 8] Favorites ----------- Power Light Ion Engine Engine Light Ion Engine Propulsion Wheel Treads Light Treads Leg Aluminum Leg Wheel Wheel Utility Seismic Detector Device Seismic Detector Storage Large Storage Unit Weapon Light Assault Rifle Energy Gun EM Pulse Gun Ballistic Gun Light Assault Rifle Build | -11 -10 ------- Run | Yrd Mat Slots Evolved . | . . Power . | . . Propulsion . | . . Utility . | . . Weapon . | . . Parts Attached 9 | 4 5 Power 1 | . 1 Engine 1 | . 1 Core . | . . Reactor . | . . Propulsion 4 | 2 2 Treads 2 | . 2 Leg . | . . Wheel 2 | 2 . Hover . | . . Flight . | . . Utility 3 | 1 2 Device 1 | 1 . Storage 2 | . 2 Processor . | . . Hackware . | . . Protection . | . . Artifact . | . . Weapon 1 | 1 . Energy Gun . | . . Energy Cannon . | . . Ballistic Gun 1 | 1 . Ballistic Cannon . | . . Launcher . | . . Special Weapon . | . . Impact Weapon . | . . Slashing Weapon . | . . Piercing Weapon . | . . Special Melee Weapon . | . . Unidentified Prototypes . | . . Parts Lost 7 | . 7 Power 2 | . 2 Propulsion 2 | . 2 Utility 1 | . 1 Weapon 2 | . 2 Highest Loss Streak 4 | . 4 To Critical Strikes . | . . Average Backups 7 | 5 7 Power . | 1 . Propulsion 3 | 3 4 Utility 2 | . 2 Weapon . | . . Tool/Special . | . . Unused Backups 11 | 6 5 Power 1 | . 1 Propulsion 6 | 4 2 Utility 2 | . 2 Weapon 2 | 2 . Tool/Special . | . . Average Slot Usage (%) 86 | . 86 Engine 8 | . 8 Treads 14 | . 14 Wheel 13 | . 13 Device 10 | . 10 Storage 17 | . 17 Ballistic Gun 20 | . 20 Peak Build Rating 8 | 7 8 Average Rating 6 | 6 6 On Entrance 6 | 6 7 Naked Turns . | . . Heaviest Build 27 | 12 27 Greatest Support 40 | 20 40 Greatest Overweight (x) 1 | . 1 Average Overweight (x) . | . . Largest Inventory Capacity 15 | 8 15 Average Capacity 12 | 8 14 Most Carried 8 | 8 8 Average Carried 7 | 5 7 Final Capacity 15 | 8 15 Final Carried 8 | 6 8 Class Distribution -------------------- 100% | Mutant Dominant Class ---------------- Mutant | -10/Materials Resources | -11 -10 ----------- Run | Yrd Mat Matter Collected 437 | 290 147 Remotely . | . . Salvage Created 507 | 117 390 Parts 35 | 14 21 Haulers Intercepted . | . . Recyclers Shooed 2 | 1 1 Parts Field Recycled . | . . Retrieved Matter . | . . Parts Self-Destructed . | . . Prevented . | . . Kills | -11 -10 ------- Run | Yrd Mat Combat Hostiles Destroyed 9 | . 9 Guns 9 | . 9 Classes Destroyed 5 | 2 3 Tunneler 3 | 3 . Recycler 2 | 1 1 Watcher 1 | . 1 Swarmer 2 | . 2 Grunt 7 | . 7 Best Kill Streak 3 | 2 3 Combat Bots Only 3 | . 3 Max Kills in Single Turn 1 | 1 1 Gunslinging . | . . Exploded . | . . Melee . | . . Uniques/NPCs Destroyed . | . . Combat | -11 -10 -------- Run | Yrd Mat Hostile Shots Fired 99 | . 99 Missed 24 | . 24 Hits 75 | . 75 Projectile 75 | . 75 Damage Taken 943 | . 943 Core 257 | . 257 Absorbed by Shields . | . . Core Remaining (%) 100 | 100 . Volleys Fired 86 | 14 72 Largest 2 | 2 2 Hottest 60 | 60 40 Shots Fired 113 | 28 85 Gun 113 | 28 85 Cannon . | . . Launcher . | . . Special . | . . Kinetic 111 | 26 85 Thermal . | . . Explosive . | . . Electromagnetic 2 | 2 . Robot Hit Streak 9 | 8 9 Robot Miss Streak 3 | 2 3 Penetration Max . | . . Secondary Targets 1 | . 1 Max Gunslinging Chain 1 | . 1 Shots Hit Robots 82 | 19 63 Core Hits 34 | 6 28 Critical Kills . | . . Critical Parts Destroyed 4 | 1 3 Critical Strikes 4 | 1 3 Destroy 4 | 1 3 Melee Attacks . | . . Impact . | . . Slashing . | . . Piercing . | . . Sneak Attacks . | . . Combat Hostiles . | . . Follow-up Attacks . | . . Damage Inflicted 777 | 212 565 Guns 773 | 212 561 Cannons . | . . Explosions . | . . Melee . | . . Ramming 4 | . 4 Kinetic 743 | 182 561 Thermal . | . . Explosive . | . . Electromagnetic 30 | 30 . Impact . | . . Slashing . | . . Piercing . | . . Highest Corruption . | . . Average Corruption . | . . Corruption Purged . | . . Corruption Blocked . | . . Overload Shots . | . . Overflow Damage . | . . Projectiles . | . . Explosions . | . . Melee . | . . Knockbacks . | . . Impact . | . . Kinetic . | . . Secondary . | . . Self-Inflicted Damage . | . . Shots . | . . Rammed 5 | . 5 Targets Rammed 5 | . 5 Kicked . | . . Crushed . | . . Highest Temperature 20 | 20 18 Average Temperature 7 | 15 5 Received Heat Transfer 390 | . 390 Siege Activations . | . . Martial Activations . | . . Shielding Activations . | . . Robots Disrupted . | . . Combat Hostiles . | . . Robots Corrupted . | . . Combat Hostiles . | . . Parts Fried . | . . Impact Corruptions . | . . Robots Melted . | . . Combat Hostiles . | . . Parts Melted . | . . Heat Transferred . | . . Parts Sabotaged . | . . Parts Stolen . | . . Parts Stripped . | . . Power Chain Reactions . | . . Alert | -11 -10 ------- Run | Yrd Mat Maximum Alert Level . | . . Low Security (%) 100 | 100 100 Level 1 . | . . Level 2 . | . . Level 3 . | . . Level 4 . | . . Level 5 . | . . High Security . | . . Max Security . | . . Peak Influence 130 | 10 130 Initial 3 | . 3 Average 25 | 1 31 Influence Increases 307 | 20 287 Destroy 0b10 Robot/C 180 | . 180 Destroy 0b10 Robot/NC 30 | 20 10 Destroy Leader 32 | . 32 Successful Hack 5 | . 5 Lose Combat Pursuer 60 | . 60 Influence Decreases 202 | 15 187 Entered New Map 2 | . 2 Time Decay 130 | 15 115 Lost Part 70 | . 70 Squads Dispatched . | . . Investigation . | . . Extermination . | . . Reinforcement . | . . Assault . | . . Garrison . | . . Intercept . | . . Searches Triggered . | . . Construction Impeded . | . . Haulers Reinforced . | . . Active Scanning Responses . | . . Cargo Convoy Interrupts . | . . Stealth | -11 -10 --------- Run | Yrd Mat Distress Signals . | . . Communications Jammed . | . . Distress Signals . | . . Times Spotted 23 | . 23 Peak Tracking Total 7 | . 7 Tactical Retreats 2 | . 2 Traps | -11 -10 ------- Run | Yrd Mat Traps Triggered 1 | . 1 Indirectly . | . . Trap Hack Attempts . | . . Triggered . | . . Disarmed . | . . Reprogrammed . | . . Reused . | . . Traps Extracted . | . . Installed . | . . Triggered . | . . Machines | -11 -10 ---------- Run | Yrd Mat Machines Disabled . | . . Max in Single Turn . | . . Machines Repaired . | . . Machines Dismantled . | . . Machines Sabotaged . | . . Overloaded Fab Kills . | . . Hacking | -11 -10 --------- Run | Yrd Mat Machines Accessed 2 | . 2 Terminals 2 | . 2 Fabricators . | . . Repair Stations . | . . Recycling Units . | . . Scanalyzers . | . . Garrison Access . | . . Total Hacks 11 | . 11 Successful 3 | . 3 Failed 8 | . 8 Catastrophic . | . . Database Lockouts . | . . Manual 11 | . 11 Terminals 11 | . 11 Fabricators . | . . Repair Stations . | . . Recycling Units . | . . Scanalyzers . | . . Garrison Access . | . . Terminal Hacks 1 | . 1 Robot Analysis 1 | . 1 Fabricator Hacks . | . . Repair Station Hacks . | . . Recycling Unit Hacks . | . . Scanalyzer . | . . Garrison Access Hacks . | . . Unauthorized Hacks 2 | . 2 Terminals 2 | . 2 Botnet 2 | . 2 Fabricators . | . . Repair Stations . | . . Recycling Units . | . . Scanalyzers . | . . Garrison Access . | . . Data Cores Recovered . | . . Used . | . . Hacking Detections 2 | . 2 Full Trace Events . | . . Feedback Events . | . . Feedback Blocked . | . . Robot Schematics Acquired . | . . Robots Built . | . . Authchips . | . . Time . | . . Total Robot Build Rating . | . . Part Schematics Acquired . | . . Parts Built . | . . Authchips . | . . Time . | . . Total Part Build Rating . | . . Parts Repaired . | . . Time . | . . Parts Recycled . | . . Recycled Matter . | . . Retrieved Matter . | . . Retrieved Components . | . . Parts Scanalyzed . | . . Part Schematics Acquired . | . . Parts Damaged . | . . Bothacking | -11 -10 ------------ Run | Yrd Mat Used RIF Installer . | . . Robots Hacked . | . . Non-combat . | . . Combat . | . . Robot Hacks Applied . | . . Relay Couplers Released . | . . Fabnet Peak Effective % . | . . Robots Rewired . | . . Allies Hacked . | . . Hacks Repelled . | . . Allies | -11 -10 -------- Run | Yrd Mat Total Allies . | . . Largest Group . | . . Highest-Rated Group . | . . Highest-Rated Ally . | . . Total Orders . | . . Ally Attacks . | . . Total Damage . | . . Kills . | . . Allies Corrupted . | . . Allies Melted . | . . Intel | -11 -10 ------- Run | Yrd Mat Active Infowar (turns) 360 | 71 289 Seismic 360 | 71 289 Robot Analysis Total 1 | . 1 Derelict Logs Recovered . | . . Drone Launches . | . . Drone Recoveries . | . . Exploration | -11 -10 ------------- Run | Yrd Mat Turns Passed 495 | 97 398 Spaces Moved 259 | 49 210 Core . | . . Treads 46 | . 46 Legs 15 | 15 . Wheels 198 | 34 164 Hover . | . . Flight . | . . Fastest Speed 80 | 80 80 Average Speed 103 | 92 106 Slowest Speed 240 | 120 240 Overloaded Moves . | . . Propulsion Burnouts . | . . Robots Hopped . | . . Potential Cave-ins . | . . Cave-ins Triggered . | . . Exploration Rate (%) 24 | 3 46 Regions Visited 1 Branch Regions . Pre-discovered Areas . | . . Known Exits Taken . | . . Unknown Exits Taken 1 | 1 . Scrap Searched . | . . Spaces Dug . | . . Terrain Destroyed . | . . Melee . | . . Projectile . | . . AOE . | . . Terrain Rammed . | . . Walls Destroyed . | . . Machines Disabled . | . . Actions | -11 -10 --------- Run | Yrd Mat Total 384 | 77 307 Wait 12 | . 12 Move 258 | 48 210 Hop . | . . Pick Up 7 | 5 2 Fast Attach 1 | 1 . Attach 3 | 2 1 Detach 1 | 1 . Swap 6 | 1 5 Drop 5 | 5 . Fire 86 | 14 72 Melee . | . . Ram 1 | . 1 Kick . | . . Crush 4 | . 4 Escape Stasis . | . . Rewire . | . . Trap . | . . Miscellaneous . | . . Route ------- -11/Scrapyard -10/Materials (discovered 2 exits: [*Mat] / [*Min]) History --------- Turn | Location | Event 1 | -11/Scrapyard | Discovered new exit (range 3) 98 | -11/Scrapyard | Entered Materials 189 | -10/Materials | Discovered new exit (range 3) 229 | -10/Materials | Discovered new exit (range 11) 302 | -10/Materials | Build established: Mutant 430 | -10/Materials | Core integrity fell below 50% 473 | -10/Materials | Core integrity fell below 20% 496 | -10/Materials | Destroyed by S-10 Pest with Light Assault Rifle Last Messages --------------- 00402_ R-06 Scavenger collects Sml. Storage Unit. 00402_ R-06 Scavenger collects Com. Wheel. 00429_ Triggered EMP Trap. 00429_ A bubble of electromagnetic force engulfs the area. 00429_ Chain reaction triggered in Ion Engine. 00445_ U-05 Engineer builds a Wall. 00456_ S-10 Pest destroyed. 00469_ R-06 Scavenger collects Lgt. Ion Engine. 00470_ Lgt. Treads destroyed. 00474_ G-34 Mercenary destroyed. 00483_ Lgt. Assault Rifle destroyed. 00487_ Slammed into S-10 Pest. 00491_ K-01 Serf collects debris. 00491_ Slammed into S-10 Pest. 00494_ Seismic Detector destroyed. 00494_ Slammed into S-10 Pest. 00495_ K-01 Serf collects debris. 00495_ Lgt. Treads destroyed. 00495_ Slammed into S-10 Pest. Map ----- +----------------------------------------------------+ | ??????????????????????????????# ""#??????????? | | ??????????????????????????????# ||#??????????? | | ??????????????????????????????# < ""#??????????? | | ??????????????????????????????# !!#??????????? | | ??????????????????????????????# ""#??????????? | | ??????????????????????????????# "#??????????? | | ??????????????????????????????## ####??????????? | | ???????????????????????????????# #?????????????? | | ???????????????????????????????# #?????????????? | | ???????????????????? #?######### #?????????????? | | ?????????????????????/? ## #######???????? | | ?????????????????????# """ # #???????? | | ?????????????????????# """"" # #???????? | | ?????????????????????# """"" !! #???????? | | ?????????????????????# """"" # !! #???????? | | ?????????????????????#! """ ! #???????? | | ?????????????????????# # #???????? | | ?????????????????????# #^ +???????? | | ?????????????????????# # ^""" #???????? | | ?????????????# #####+######+### """ #???????? | | ?????????????? + """ # #?# """ #???????? | | ?????????????????#g "T" # #?# #???????? | | ?????????????????# " " # ### #???????? | | ?????????????????# k# """ #???????? | | ?????????????????# %%+ """ #???????? | | ?????????????????# """@# """? ???????? | | ?????????????????# """s# ?????????? | | ?????????????????# """ # ????????? | | ?????????????????#[ # ????????? | | ?????????????????########## ????????? | | ?????????????????????????? ###########????????? | | ??????????????????????????##+##??????????????????? | | ?????????????????????????????????????????????????? | | ?????????????????????????????????????????????????? | | ?????????????????????????????????????????????????? | | ?????????????????????????????????????????????????? | | ?????????????????????????????????????????????????? | | ?????????????????????????????????????????????????? | | ?????????????????????????????????????????????????? | | ?????????????????????????????????????????????????? | | | | | | | | | | | | | | | | | | | | | +----------------------------------------------------+ Best States ------------- Heat Dissipation 25 Energy Generation 10 Energy Capacity 250 Matter Stores 300 Matter Capacity 300 Sight Range 16 Terrain Scan Density 10 Evasion (%) 50 Recoil Reduction 2 Item Schematics ----------------- None Robot Schematics ------------------ None Fabricated ------------ Nothing Repaired ---------- Nothing Alien Tech Used ----------------- None Achievements -------------- None Challenges ------------ None Game ------ Seed RemoteWeldingDeconstructor Manual? 0 Play Time 00:08:28 Cumulative 211.8 hours Start 2025.05.18 @ 13:02:06 End 2025.05.18 @ 13:07:02 Sessions 1 Manual Loads 0 Difficulty Rogue Special Mode None Game No. 165 Rogue 165 Adventurer 0 Explorer 0 Win Type - Total 4 Types 2/0/1/1/0/0/0/0/0/0 Lore% 51 Gallery% 70 Achievement% 64 Wizard Run 0 Options --------- Layout 1 ASCII 0 Keyboard 1 Movement Numpad Keybinds 0 Fullscreen 1 Font 48/Smallcaps Map View 55x35 Zoom Use 0% Tactical HUD 1 Map Filters NONE Filters NONE Steam 1 RUN: c8dca797-5d59-415b-b8dc-96e9c66feded